Body Name,Body,Service division categorisation,Expense Type,Date paid,Transaction Reference,Net,Supplier Name,Redacted/Excluded
South Holland District Council,http://statistics.data.gov.uk/id/local-authority/32UF,Environmental Services,Agency Staff,03/04/2014,IJ00028173,333.00,247 Personnel Ltd, 
South Holland District Council,http://statistics.data.gov.uk/id/local-authority/32UF,Environmental Services,Agency Staff,03/04/2014,IJ00028173,265.50,247 Personnel Ltd, 
South Holland District Council,http://statistics.data.gov.uk/id/local-authority/32UF,Environmental Services,Agency Staff,03/04/2014,IJ00028173,67.50,247 Personnel Ltd, 
South Holland District Council,http://statistics.data.gov.uk/id/local-authority/32UF,Environmental Services,Agency Staff,03/04/2014,IJ00028174,82.88,247 Personnel Ltd, 
South Holland District Council,http://statistics.data.gov.uk/id/local-authority/32UF,Environmental Services,Agency Staff,03/04/2014,IJ00028174,651.94,247 Personnel Ltd, 
South Holland District Council,http://statistics.data.gov.uk/id/local-authority/32UF,Environmental Services,Agency Staff,03/04/2014,IJ00028174,82.88,247 Personnel Ltd, 
South Holland District Council,http://statistics.data.gov.uk/id/local-authority/32UF,Environmental Services,Water and Sewerage Charges,03/04/2014,IJ00028156,849.44,Anglian Water, 
South Holland District Council,http://statistics.data.gov.uk/id/local-authority/32UF,Environmental Services,Other Miscellaneous Expenses,03/04/2014,IJ00028189,4600.00,Bartec Auto ID Ltd, 
South Holland District Council,http://statistics.data.gov.uk/id/local-authority/32UF,ICT and Customer Services,Computer Hardware Maintenance,03/04/2014,IJ00028175,780.06,Boston Borough Council, 
South Holland District Council,http://statistics.data.gov.uk/id/local-authority/32UF,Housing Landlord Manager,Fuel & Oil,03/04/2014,IJ00028123,820.26,C H Jones Ltd, 
South Holland District Council,http://statistics.data.gov.uk/id/local-authority/32UF,Environmental Services,Fuel & Oil,03/04/2014,IJ00028123,4.66,C H Jones Ltd, 
South Holland District Council,http://statistics.data.gov.uk/id/local-authority/32UF,Environmental Services,Fuel & Oil,03/04/2014,IJ00028123,2404.16,C H Jones Ltd, 
South Holland District Council,http://statistics.data.gov.uk/id/local-authority/32UF,Environmental Services,Fuel & Oil,03/04/2014,IJ00028123,666.53,C H Jones Ltd, 
South Holland District Council,http://statistics.data.gov.uk/id/local-authority/32UF,Environmental Services,Fuel & Oil,03/04/2014,IJ00028123,3732.68,C H Jones Ltd, 
South Holland District Council,http://statistics.data.gov.uk/id/local-authority/32UF,Housing Landlord Manager,Fuel & Oil,03/04/2014,IJ00028123,165.29,C H Jones Ltd, 
South Holland District Council,http://statistics.data.gov.uk/id/local-authority/32UF,Housing Landlord Manager,Fuel & Oil,03/04/2014,IJ00028123,181.84,C H Jones Ltd, 
South Holland District Council,http://statistics.data.gov.uk/id/local-authority/32UF,Environmental Services,Fuel & Oil,03/04/2014,IJ00028123,25.47,C H Jones Ltd, 
South Holland District Council,http://statistics.data.gov.uk/id/local-authority/32UF,Environmental Services,Fuel & Oil,03/04/2014,IJ00028123,4.66,C H Jones Ltd, 
South Holland District Council,http://statistics.data.gov.uk/id/local-authority/32UF,Environmental Services,Fuel & Oil,03/04/2014,IJ00028123,480.56,C H Jones Ltd, 
South Holland District Council,http://statistics.data.gov.uk/id/local-authority/32UF,Environmental Health,Fuel & Oil,03/04/2014,IJ00028123,45.61,C H Jones Ltd, 
South Holland District Council,http://statistics.data.gov.uk/id/local-authority/32UF,Environmental Services,Fuel & Oil,03/04/2014,IJ00028123,58.83,C H Jones Ltd, 
South Holland District Council,http://statistics.data.gov.uk/id/local-authority/32UF,Environmental Services,Commercial Vehicle Lease,03/04/2014,IJ00028136,147.52,C P Davidson & Sons Ltd, 
South Holland District Council,http://statistics.data.gov.uk/id/local-authority/32UF,Environmental Services,Commercial Vehicle Lease,03/04/2014,IJ00028136,147.52,C P Davidson & Sons Ltd, 
South Holland District Council,http://statistics.data.gov.uk/id/local-authority/32UF,Environmental Services,Commercial Vehicle Lease,03/04/2014,IJ00028136,57177.39,C P Davidson & Sons Ltd, 
South Holland District Council,http://statistics.data.gov.uk/id/local-authority/32UF,Environmental Services,Commercial Vehicle Lease,03/04/2014,IJ00028136,147.52,C P Davidson & Sons Ltd, 
South Holland District Council,http://statistics.data.gov.uk/id/local-authority/32UF,Environmental Services,Commercial Vehicle Lease,03/04/2014,IJ00028136,25893.15,C P Davidson & Sons Ltd, 
South Holland District Council,http://statistics.data.gov.uk/id/local-authority/32UF,Environmental Services,Commercial Vehicle Lease,03/04/2014,IJ00028136,147.52,C P Davidson & Sons Ltd, 
South Holland District Council,http://statistics.data.gov.uk/id/local-authority/32UF,Environmental Services,Commercial Vehicle Lease,03/04/2014,IJ00028136,70565.73,C P Davidson & Sons Ltd, 
South Holland District Council,http://statistics.data.gov.uk/id/local-authority/32UF,Environmental Services,Commercial Vehicle Lease,03/04/2014,IJ00028136,952.18,C P Davidson & Sons Ltd, 
South Holland District Council,http://statistics.data.gov.uk/id/local-authority/32UF,Environmental Services,Commercial Vehicle Lease,03/04/2014,IJ00028136,177.02,C P Davidson & Sons Ltd, 
South Holland District Council,http://statistics.data.gov.uk/id/local-authority/32UF,Environmental Services,Commercial Vehicle Lease,03/04/2014,IJ00028136,177.02,C P Davidson & Sons Ltd, 
South Holland District Council,http://statistics.data.gov.uk/id/local-authority/32UF,Environmental Services,Commercial Vehicle Lease,03/04/2014,IJ00028147,4726.52,C P Davidson & Sons Ltd, 
South Holland District Council,http://statistics.data.gov.uk/id/local-authority/32UF,Planning,Professional & Contractors Fees,03/04/2014,IJ00028194,1174.25,CDI AndersElite Ltd, 
South Holland District Council,http://statistics.data.gov.uk/id/local-authority/32UF,Planning,Professional & Contractors Fees,03/04/2014,IJ00028196,1212.38,CDI AndersElite Ltd, 
South Holland District Council,http://statistics.data.gov.uk/id/local-authority/32UF,Planning,Professional & Contractors Fees,03/04/2014,IJ00028199,1159.00,CDI AndersElite Ltd, 
South Holland District Council,http://statistics.data.gov.uk/id/local-authority/32UF,Building Control,Subscriptions to Organisations and Other Bodies,03/04/2014,IJ00028152,1830.49,District Surveyors Association Limited, 
South Holland District Council,http://statistics.data.gov.uk/id/local-authority/32UF,Democratic Services,Stationery,03/04/2014,IJ00028130,1138.57,ELECTORAL REFORM SERVICES, 
South Holland District Council,http://statistics.data.gov.uk/id/local-authority/32UF,Environmental Services,Furniture and Equipment,03/04/2014,IJ00028158,818.57,Imperial Civil Enforcement Solutions (Compex), 
South Holland District Council,http://statistics.data.gov.uk/id/local-authority/32UF,Housing Landlord Manager,Gross Pay,03/04/2014,IJ00028129,854.52,James Andrews Recruitment Solutions, 
South Holland District Council,http://statistics.data.gov.uk/id/local-authority/32UF,Housing Landlord Manager,Buildings Maintenance - Responsive,03/04/2014,IJ00028148,600.00,Justin Doughty, 
South Holland District Council,http://statistics.data.gov.uk/id/local-authority/32UF,Environmental Health,Professional & Contractors Fees,03/04/2014,IJ00028202,900.00,Kingsley Hamilton, 
South Holland District Council,http://statistics.data.gov.uk/id/local-authority/32UF,Building Control,Legal Fees,03/04/2014,IJ00028138,1000.00,Maples Solicitors, 
South Holland District Council,http://statistics.data.gov.uk/id/local-authority/32UF,Building Control,Legal Fees,03/04/2014,IJ00028141,750.00,Maples Solicitors, 
South Holland District Council,http://statistics.data.gov.uk/id/local-authority/32UF,Balance Sheet,Long Term Debtors - Other,03/04/2014,IJ00028215,5450.00,Marriotts Motors Ltd, 
South Holland District Council,http://statistics.data.gov.uk/id/local-authority/32UF,Community Development,Materials and Consumables,03/04/2014,IJ00028208,176.79,Medway Galvanising Co Ltd, 
South Holland District Council,http://statistics.data.gov.uk/id/local-authority/32UF,Community Development,Buildings Maintenance - Responsive,03/04/2014,IJ00028208,1210.00,Medway Galvanising Co Ltd, 
South Holland District Council,http://statistics.data.gov.uk/id/local-authority/32UF,Community Development,Furniture and Equipment,03/04/2014,IJ00028208,1400.00,Medway Galvanising Co Ltd, 
South Holland District Council,http://statistics.data.gov.uk/id/local-authority/32UF,Capital,Works to Buildings (main Contractor),03/04/2014,IJ00028168,3453.00,MPL HOME IMPROVEMENTS SERVICES LINCS LTD, 
South Holland District Council,http://statistics.data.gov.uk/id/local-authority/32UF,Environmental Services,Subscriptions to Organisations and Other Bodies,03/04/2014,IJ00028169,636.00,Nabma, 
South Holland District Council,http://statistics.data.gov.uk/id/local-authority/32UF,Housing Landlord Manager,Commercial Vehicle Lease,03/04/2014,IJ00028172,144.00,Navman Wireless Uk Ltd, 
South Holland District Council,http://statistics.data.gov.uk/id/local-authority/32UF,Housing Landlord Manager,Commercial Vehicle Lease,03/04/2014,IJ00028172,1008.00,Navman Wireless Uk Ltd, 
South Holland District Council,http://statistics.data.gov.uk/id/local-authority/32UF,Housing Landlord Manager,Commercial Vehicle Lease,03/04/2014,IJ00028172,504.00,Navman Wireless Uk Ltd, 
South Holland District Council,http://statistics.data.gov.uk/id/local-authority/32UF,Democratic Services,Members Other Allowances,03/04/2014,IJ00028162,578.00,NLA media access limited, 
South Holland District Council,http://statistics.data.gov.uk/id/local-authority/32UF,Democratic Services,Other Communication Costs,03/04/2014,IJ00028200,11900.00,PUBLIC I GROUP LIMITED, 
South Holland District Council,http://statistics.data.gov.uk/id/local-authority/32UF,Community Development,Buildings Maintenance - Programmed,03/04/2014,IJ00028188,580.00,Rigby Taylor Limited, 
South Holland District Council,http://statistics.data.gov.uk/id/local-authority/32UF,Environmental Health,Professional & Contractors Fees,03/04/2014,IJ00028191,675.00,SAFETY LINK CONSULTANT SERVICES, 
South Holland District Council,http://statistics.data.gov.uk/id/local-authority/32UF,Environmental Services,Professional & Contractors Fees,03/04/2014,IJ00028170,3908.89,South Holland Maintenance Ltd, 
South Holland District Council,http://statistics.data.gov.uk/id/local-authority/32UF,Democratic Services,Other Miscellaneous Expenses,03/04/2014,IJ00028166,1258.00,The Parish Of St Mary & St Nicholas, 
South Holland District Council,http://statistics.data.gov.uk/id/local-authority/32UF,Housing Landlord Manager,Gross Pay,03/04/2014,IJ00028164,862.50,Venn Group Limited, 
South Holland District Council,http://statistics.data.gov.uk/id/local-authority/32UF,Housing Landlord Manager,Gross Pay,03/04/2014,IJ00028163,862.50,Venn Group Limited, 
South Holland District Council,http://statistics.data.gov.uk/id/local-authority/32UF,ICT and Customer Services,Computer Software Licence Costs,03/04/2014,IJ00028124,8500.00,Xpress Software Solutions Ltd, 
South Holland District Council,http://statistics.data.gov.uk/id/local-authority/32UF,Economic Development,Grants and Contributions to Outside Bodies- No Service Recei,04/04/2014,IJ00027608,3330.00,Rookery Farm Packing Ltd, 
South Holland District Council,http://statistics.data.gov.uk/id/local-authority/32UF,Asset and Property,Agency Staff,10/04/2014,IJ00028219,1082.83,5 Star Facility Management, 
South Holland District Council,http://statistics.data.gov.uk/id/local-authority/32UF,Environmental Services,Professional & Contractors Fees,10/04/2014,IJ00028252,900.00,A Riddel Skip Hire & Scrap Metal Merchants, 
South Holland District Council,http://statistics.data.gov.uk/id/local-authority/32UF,Environmental Services,Professional & Contractors Fees,10/04/2014,IJ00028253,900.00,A Riddel Skip Hire & Scrap Metal Merchants, 
South Holland District Council,http://statistics.data.gov.uk/id/local-authority/32UF,Community Development,Premises and Room Hire,10/04/2014,IJ00028311,-1165.00,Act II, 
South Holland District Council,http://statistics.data.gov.uk/id/local-authority/32UF,Community Development,Other Hire Fees,10/04/2014,IJ00028311,-1464.16,Act II, 
South Holland District Council,http://statistics.data.gov.uk/id/local-authority/32UF,Community Development,Payments to Bodies in Respect of Income Collected,10/04/2014,IJ00028311,7712.00,Act II, 
South Holland District Council,http://statistics.data.gov.uk/id/local-authority/32UF,Community Development,Commission,10/04/2014,IJ00028311,-642.67,Act II, 
South Holland District Council,http://statistics.data.gov.uk/id/local-authority/32UF,Housing Landlord Manager,Materials and Consumables,10/04/2014,IJ00028407,1375.00,Alvey Fireplaces Ltd, 
South Holland District Council,http://statistics.data.gov.uk/id/local-authority/32UF,Housing Landlord Manager,Materials and Consumables,10/04/2014,IJ00028407,1375.00,Alvey Fireplaces Ltd, 
South Holland District Council,http://statistics.data.gov.uk/id/local-authority/32UF,Housing Landlord Manager,Void Repairs,10/04/2014,IJ00028284,550.00,Andrew Hicks t a Hicks Electrical, 
South Holland District Council,http://statistics.data.gov.uk/id/local-authority/32UF,Housing Landlord Manager,Computer Software Licence Costs,10/04/2014,IJ00028333,21184.00,Automico Limited, 
South Holland District Council,http://statistics.data.gov.uk/id/local-authority/32UF,Housing Landlord Manager,Buildings Maintenance - Responsive,10/04/2014,IJ00028368,1210.00,B J ROOFING, 
South Holland District Council,http://statistics.data.gov.uk/id/local-authority/32UF,Housing Landlord Manager,Furniture and Equipment,10/04/2014,IJ00028301,527.50,B T Blinds, 
South Holland District Council,http://statistics.data.gov.uk/id/local-authority/32UF,Housing Landlord Manager,Buildings Maintenance - Responsive,10/04/2014,IJ00028431,1197.00,Barry Disdel, 
South Holland District Council,http://statistics.data.gov.uk/id/local-authority/32UF,Housing Landlord Manager,Buildings Maintenance - Responsive,10/04/2014,IJ00028432,645.00,Barry Disdel, 
South Holland District Council,http://statistics.data.gov.uk/id/local-authority/32UF,Housing Landlord Manager,Drain Repairs,10/04/2014,IJ00028266,5011.00,Bates Environmental Ltd, 
South Holland District Council,http://statistics.data.gov.uk/id/local-authority/32UF,Environmental Services,Agency Staff,10/04/2014,IJ00028232,211.76,Blue Arrow Ltd, 
South Holland District Council,http://statistics.data.gov.uk/id/local-authority/32UF,Environmental Services,Agency Staff,10/04/2014,IJ00028232,1353.71,Blue Arrow Ltd, 
South Holland District Council,http://statistics.data.gov.uk/id/local-authority/32UF,Environmental Services,Agency Staff,10/04/2014,IJ00028232,1045.42,Blue Arrow Ltd, 
South Holland District Council,http://statistics.data.gov.uk/id/local-authority/32UF,Environmental Services,Agency Staff,10/04/2014,IJ00028232,583.04,Blue Arrow Ltd, 
South Holland District Council,http://statistics.data.gov.uk/id/local-authority/32UF,Environmental Services,Agency Staff,10/04/2014,IJ00028231,81.20,Blue Arrow Ltd, 
South Holland District Council,http://statistics.data.gov.uk/id/local-authority/32UF,Environmental Services,Agency Staff,10/04/2014,IJ00028231,1427.84,Blue Arrow Ltd, 
South Holland District Council,http://statistics.data.gov.uk/id/local-authority/32UF,Environmental Services,Agency Staff,10/04/2014,IJ00028231,690.11,Blue Arrow Ltd, 
South Holland District Council,http://statistics.data.gov.uk/id/local-authority/32UF,Environmental Services,Agency Staff,10/04/2014,IJ00028231,444.55,Blue Arrow Ltd, 
South Holland District Council,http://statistics.data.gov.uk/id/local-authority/32UF,Housing Landlord Manager,Other Communication Costs,10/04/2014,IJ00028291,13514.86,Boston Mayflower Ltd, 
South Holland District Council,http://statistics.data.gov.uk/id/local-authority/32UF,HR,Staff Training Expenses,10/04/2014,IJ00028239,552.00,Breckland Council, 
South Holland District Council,http://statistics.data.gov.uk/id/local-authority/32UF,Environmental Services,Income Collected on Behalf of External Organisations,10/04/2014,IJ00028395,6504.30,Broadgate Homes, 
South Holland District Council,http://statistics.data.gov.uk/id/local-authority/32UF,Housing Landlord Manager,Fuel & Oil,10/04/2014,IJ00028327,260.97,C H Jones Ltd, 
South Holland District Council,http://statistics.data.gov.uk/id/local-authority/32UF,Environmental Services,Fuel & Oil,10/04/2014,IJ00028327,6.75,C H Jones Ltd, 
South Holland District Council,http://statistics.data.gov.uk/id/local-authority/32UF,Environmental Services,Fuel & Oil,10/04/2014,IJ00028327,349.04,C H Jones Ltd, 
South Holland District Council,http://statistics.data.gov.uk/id/local-authority/32UF,Environmental Services,Fuel & Oil,10/04/2014,IJ00028327,2207.86,C H Jones Ltd, 
South Holland District Council,http://statistics.data.gov.uk/id/local-authority/32UF,Environmental Services,Fuel & Oil,10/04/2014,IJ00028327,512.77,C H Jones Ltd, 
South Holland District Council,http://statistics.data.gov.uk/id/local-authority/32UF,Environmental Services,Fuel & Oil,10/04/2014,IJ00028327,3164.50,C H Jones Ltd, 
South Holland District Council,http://statistics.data.gov.uk/id/local-authority/32UF,Housing Landlord Manager,Fuel & Oil,10/04/2014,IJ00028327,251.52,C H Jones Ltd, 
South Holland District Council,http://statistics.data.gov.uk/id/local-authority/32UF,Environmental Services,Fuel & Oil,10/04/2014,IJ00028327,26.89,C H Jones Ltd, 
South Holland District Council,http://statistics.data.gov.uk/id/local-authority/32UF,Environmental Services,Fuel & Oil,10/04/2014,IJ00028327,6.75,C H Jones Ltd, 
South Holland District Council,http://statistics.data.gov.uk/id/local-authority/32UF,Environmental Health,Fuel & Oil,10/04/2014,IJ00028327,53.55,C H Jones Ltd, 
South Holland District Council,http://statistics.data.gov.uk/id/local-authority/32UF,Environmental Services,Fuel & Oil,10/04/2014,IJ00028327,64.02,C H Jones Ltd, 
South Holland District Council,http://statistics.data.gov.uk/id/local-authority/32UF,Environmental Services,Commercial Vehicle Lease,10/04/2014,IJ00028243,4726.52,C P Davidson & Sons Ltd, 
South Holland District Council,http://statistics.data.gov.uk/id/local-authority/32UF,Environmental Services,Commercial Vehicle Lease,10/04/2014,IJ00028375,4726.52,C P Davidson & Sons Ltd, 
South Holland District Council,http://statistics.data.gov.uk/id/local-authority/32UF,Environmental Services,Maintenance,10/04/2014,IJ00028428,4364.53,C P Davidson & Sons Ltd, 
South Holland District Council,http://statistics.data.gov.uk/id/local-authority/32UF,Environmental Services,Maintenance,10/04/2014,IJ00028428,6546.77,C P Davidson & Sons Ltd, 
South Holland District Council,http://statistics.data.gov.uk/id/local-authority/32UF,Environmental Services,Maintenance,10/04/2014,IJ00028428,6550.46,C P Davidson & Sons Ltd, 
South Holland District Council,http://statistics.data.gov.uk/id/local-authority/32UF,Environmental Services,Maintenance,10/04/2014,IJ00028428,164.38,C P Davidson & Sons Ltd, 
South Holland District Council,http://statistics.data.gov.uk/id/local-authority/32UF,Planning,Professional & Contractors Fees,10/04/2014,IJ00028298,1128.50,CDI AndersElite Ltd, 
South Holland District Council,http://statistics.data.gov.uk/id/local-authority/32UF,Environmental Services,Fuel & Oil,10/04/2014,IJ00028416,1324.00,Chandlers Oil And Gas, 
South Holland District Council,http://statistics.data.gov.uk/id/local-authority/32UF,Revs and Bens,Professional & Contractors Fees,10/04/2014,IJ00028256,1200.00,Cipfa Business Ltd, 
South Holland District Council,http://statistics.data.gov.uk/id/local-authority/32UF,Community Development,Professional & Contractors Fees,10/04/2014,IJ00028226,1800.00,Community Council Of Lincolnshire, 
South Holland District Council,http://statistics.data.gov.uk/id/local-authority/32UF,ICT and Customer Services,Computer Hardware Purchase,10/04/2014,IJ00028263,8155.60,Dell Computer Corporation Ltd, 
South Holland District Council,http://statistics.data.gov.uk/id/local-authority/32UF,Capital,Works to Buildings (main Contractor),10/04/2014,IJ00028223,11280.00,DMW Environmental Safety Ltd, 
South Holland District Council,http://statistics.data.gov.uk/id/local-authority/32UF,Environmental Services,Electricity,10/04/2014,IJ00028408,614.69,E.On, 
South Holland District Council,http://statistics.data.gov.uk/id/local-authority/32UF,Environmental Services,Electricity,10/04/2014,IJ00028408,307.35,E.On, 
South Holland District Council,http://statistics.data.gov.uk/id/local-authority/32UF,Environmental Services,Electricity,10/04/2014,IJ00028408,614.69,E.On, 
South Holland District Council,http://statistics.data.gov.uk/id/local-authority/32UF,Planning,Grants and Contributions to Outside Bodies- No Service Recei,10/04/2014,IJ00028259,2700.00,Eastern Inshore Fisheries & Conservation Auth, 
South Holland District Council,http://statistics.data.gov.uk/id/local-authority/32UF,Housing Landlord Manager,Void Repairs,10/04/2014,IJ00028279,8800.00,Elite Decor UK Limited, 
South Holland District Council,http://statistics.data.gov.uk/id/local-authority/32UF,Environmental Services,Other Miscellaneous Expenses,10/04/2014,IJ00028423,1744.86,Fentons Of Bourne Limited, 
South Holland District Council,http://statistics.data.gov.uk/id/local-authority/32UF,Economic Development,Grants and Contributions to Outside Bodies- No Service Recei,10/04/2014,IJ00028240,1285.00,Fusion Aluminium Welding Ltd, 
South Holland District Council,http://statistics.data.gov.uk/id/local-authority/32UF,Asset and Property,Buildings Maintenance - Responsive,10/04/2014,IJ00028262,819.94,Glen Farrow UK Ltd, 
South Holland District Council,http://statistics.data.gov.uk/id/local-authority/32UF,Environmental Health,Other Miscellaneous Expenses,10/04/2014,IJ00028434,822.60,Gradko International Ltd, 
South Holland District Council,http://statistics.data.gov.uk/id/local-authority/32UF,Housing Landlord Manager,Void Decoration,10/04/2014,IJ00028249,1395.00,Greenscape Tree Safe Ltd, 
South Holland District Council,http://statistics.data.gov.uk/id/local-authority/32UF,Housing Landlord Manager,Furniture and Equipment,10/04/2014,IJ00028415,901.20,Hilti GB Ltd, 
South Holland District Council,http://statistics.data.gov.uk/id/local-authority/32UF,Housing Landlord Manager,Furniture and Equipment,10/04/2014,IJ00028415,713.95,Hilti GB Ltd, 
South Holland District Council,http://statistics.data.gov.uk/id/local-authority/32UF,Environmental Services,Grants and Contributions to Outside Bodies- No Service Recei,10/04/2014,IJ00028394,3090.00,Holbeach Parish Council, 
South Holland District Council,http://statistics.data.gov.uk/id/local-authority/32UF,Environmental Services,Furniture and Equipment,10/04/2014,IJ00028230,1777.10,Ing Lease (Uk) Ltd, 
South Holland District Council,http://statistics.data.gov.uk/id/local-authority/32UF,Environmental Services,Commercial Vehicle Lease,10/04/2014,IJ00028230,5640.00,Ing Lease (Uk) Ltd, 
South Holland District Council,http://statistics.data.gov.uk/id/local-authority/32UF,Environmental Services,Agency Staff,10/04/2014,IJ00028233,63.83,Integrity Plus Ltd, 
South Holland District Council,http://statistics.data.gov.uk/id/local-authority/32UF,Environmental Services,Agency Staff,10/04/2014,IJ00028233,299.51,Integrity Plus Ltd, 
South Holland District Council,http://statistics.data.gov.uk/id/local-authority/32UF,Environmental Services,Agency Staff,10/04/2014,IJ00028233,363.34,Integrity Plus Ltd, 
South Holland District Council,http://statistics.data.gov.uk/id/local-authority/32UF,Housing Landlord Manager,Agency Staff,10/04/2014,IJ00028294,3111.68,Integrity Plus Ltd, 
South Holland District Council,http://statistics.data.gov.uk/id/local-authority/32UF,Housing,Agency Staff,10/04/2014,IJ00028294,215.05,Integrity Plus Ltd, 
South Holland District Council,http://statistics.data.gov.uk/id/local-authority/32UF,Housing Landlord Manager,Agency Staff,10/04/2014,IJ00028293,2936.78,Integrity Plus Ltd, 
South Holland District Council,http://statistics.data.gov.uk/id/local-authority/32UF,Housing,Agency Staff,10/04/2014,IJ00028293,215.04,Integrity Plus Ltd, 
South Holland District Council,http://statistics.data.gov.uk/id/local-authority/32UF,Housing Landlord Manager,Materials and Consumables,10/04/2014,IJ00028235,2060.10,Jackson Building Centres Ltd, 
South Holland District Council,http://statistics.data.gov.uk/id/local-authority/32UF,Housing Landlord Manager,Materials and Consumables,10/04/2014,IJ00028235,4629.65,Jackson Building Centres Ltd, 
South Holland District Council,http://statistics.data.gov.uk/id/local-authority/32UF,Housing Landlord Manager,Materials and Consumables,10/04/2014,IJ00028235,61.63,Jackson Building Centres Ltd, 
South Holland District Council,http://statistics.data.gov.uk/id/local-authority/32UF,Housing Landlord Manager,Materials and Consumables,10/04/2014,IJ00028234,2501.25,Jackson Building Centres Ltd, 
South Holland District Council,http://statistics.data.gov.uk/id/local-authority/32UF,Housing Landlord Manager,Materials and Consumables,10/04/2014,IJ00028234,2961.92,Jackson Building Centres Ltd, 
South Holland District Council,http://statistics.data.gov.uk/id/local-authority/32UF,Housing Landlord Manager,Materials and Consumables,10/04/2014,IJ00028234,340.95,Jackson Building Centres Ltd, 
South Holland District Council,http://statistics.data.gov.uk/id/local-authority/32UF,Housing Landlord Manager,Furniture and Equipment,10/04/2014,IJ00028236,128.58,Jackson Building Centres Ltd, 
South Holland District Council,http://statistics.data.gov.uk/id/local-authority/32UF,Housing Landlord Manager,Materials and Consumables,10/04/2014,IJ00028236,1515.30,Jackson Building Centres Ltd, 
South Holland District Council,http://statistics.data.gov.uk/id/local-authority/32UF,Housing Landlord Manager,Materials and Consumables,10/04/2014,IJ00028236,3448.49,Jackson Building Centres Ltd, 
South Holland District Council,http://statistics.data.gov.uk/id/local-authority/32UF,Housing Landlord Manager,Materials and Consumables,10/04/2014,IJ00028236,6.96,Jackson Building Centres Ltd, 
South Holland District Council,http://statistics.data.gov.uk/id/local-authority/32UF,Housing Landlord Manager,Buildings Maintenance - Responsive,10/04/2014,IJ00028339,800.00,Justin Doughty, 
South Holland District Council,http://statistics.data.gov.uk/id/local-authority/32UF,Housing Landlord Manager,Buildings Maintenance - Responsive,10/04/2014,IJ00028387,1219.00,K L Morbey Fencing, 
South Holland District Council,http://statistics.data.gov.uk/id/local-authority/32UF,Environmental Health,Professional & Contractors Fees,10/04/2014,IJ00028430,937.50,Kingsley Hamilton, 
South Holland District Council,http://statistics.data.gov.uk/id/local-authority/32UF,Democratic Services,Lincolnshire Legal Services,10/04/2014,IJ00028246,9522.14,Lincolnshire County Council, 
South Holland District Council,http://statistics.data.gov.uk/id/local-authority/32UF,Democratic Services,Lincolnshire Legal Services,10/04/2014,IJ00028246,10482.00,Lincolnshire County Council, 
South Holland District Council,http://statistics.data.gov.uk/id/local-authority/32UF,Environmental Services,Furniture and Equipment,10/04/2014,IJ00028424,1062.27,Lms Lincoln Ltd, 
South Holland District Council,http://statistics.data.gov.uk/id/local-authority/32UF,Democratic Services,Subscriptions to Organisations and Other Bodies,10/04/2014,IJ00028250,8508.30,Local Government Association, 
South Holland District Council,http://statistics.data.gov.uk/id/local-authority/32UF,Housing Landlord Manager,Buildings Maintenance - Responsive,10/04/2014,IJ00028366,5105.70,M & R Glass & Glazing Ltd, 
South Holland District Council,http://statistics.data.gov.uk/id/local-authority/32UF,Housing Landlord Manager,Buildings Maintenance - Responsive,10/04/2014,IJ00028367,1282.90,M & R Glass & Glazing Ltd, 
South Holland District Council,http://statistics.data.gov.uk/id/local-authority/32UF,Housing,Grants and Contributions to Outside Bodies- No Service Recei,10/04/2014,IJ00028271,4408.00,M E Goodyear Property Maintenance, 
South Holland District Council,http://statistics.data.gov.uk/id/local-authority/32UF,Housing,Grants and Contributions to Outside Bodies- No Service Recei,10/04/2014,IJ00028362,4519.00,M E Goodyear Property Maintenance, 
South Holland District Council,http://statistics.data.gov.uk/id/local-authority/32UF,Environmental Health,Legal Fees,10/04/2014,IJ00028218,1150.00,Maples Solicitors, 
South Holland District Council,http://statistics.data.gov.uk/id/local-authority/32UF,Housing,Grants and Contributions to Outside Bodies- No Service Recei,10/04/2014,IJ00028361,854.17,MPL HOME IMPROVEMENTS SERVICES LINCS LTD, 
South Holland District Council,http://statistics.data.gov.uk/id/local-authority/32UF,Housing,Grants and Contributions to Outside Bodies- No Service Recei,10/04/2014,IJ00028363,2108.00,MPL HOME IMPROVEMENTS SERVICES LINCS LTD, 
South Holland District Council,http://statistics.data.gov.uk/id/local-authority/32UF,Housing Landlord Manager,Materials and Consumables,10/04/2014,IJ00028346,520.00,Northgate Vehicle Hire (East Midlands) Ltd, 
South Holland District Council,http://statistics.data.gov.uk/id/local-authority/32UF,Environmental Services,Professional & Contractors Fees,10/04/2014,IJ00028258,1474.28,Ocs Group Uk Limited TA Cannon, 
South Holland District Council,http://statistics.data.gov.uk/id/local-authority/32UF,Community Development,Subscriptions to Organisations and Other Bodies,10/04/2014,IJ00028292,2876.64,Orchestras Live, 
South Holland District Council,http://statistics.data.gov.uk/id/local-authority/32UF,Planning,Grants and Contributions to Outside Bodies- No Service Recei,10/04/2014,IJ00028251,1000.00,Plann.It Limited, 
South Holland District Council,http://statistics.data.gov.uk/id/local-authority/32UF,Community Development,Fixtures And Fittings,10/04/2014,IJ00028316,1150.78,Protec Fire Detection Plc, 
South Holland District Council,http://statistics.data.gov.uk/id/local-authority/32UF,Community Development,License Fees,10/04/2014,IJ00028314,2662.98,PRS for Music, 
South Holland District Council,http://statistics.data.gov.uk/id/local-authority/32UF,Community Development,License Fees,10/04/2014,IJ00028315,994.21,PRS for Music, 
South Holland District Council,http://statistics.data.gov.uk/id/local-authority/32UF,Housing Landlord Manager,Void Repairs,10/04/2014,IJ00028328,3556.13,Response Construction Maintenance Limited, 
South Holland District Council,http://statistics.data.gov.uk/id/local-authority/32UF,Housing Landlord Manager,Materials and Consumables,10/04/2014,IJ00028350,504.06,Rexel Uk Ltd, 
South Holland District Council,http://statistics.data.gov.uk/id/local-authority/32UF,Housing Landlord Manager,Void Repairs,10/04/2014,IJ00028414,3135.00,South Holland Maintenance Ltd, 
South Holland District Council,http://statistics.data.gov.uk/id/local-authority/32UF,Asset and Property,Electricity,10/04/2014,IJ00028281,2315.70,Southern Electric, 
South Holland District Council,http://statistics.data.gov.uk/id/local-authority/32UF,Economic Development,Grants and Contributions to Outside Bodies- No Service Recei,10/04/2014,IJ00028317,15000.00,Spalding Water Taxi Co. Ltd, 
South Holland District Council,http://statistics.data.gov.uk/id/local-authority/32UF,Housing Landlord Manager,Void Repairs,10/04/2014,IJ00028222,980.00,Spotless Cleaning, 
South Holland District Council,http://statistics.data.gov.uk/id/local-authority/32UF,Housing Landlord Manager,Void Repairs,10/04/2014,IJ00028412,520.00,Spotless Cleaning, 
South Holland District Council,http://statistics.data.gov.uk/id/local-authority/32UF,Capital,Works to Buildings (main Contractor),10/04/2014,IJ00028248,2419.36,Sustainable Energy Connection  Ltd, 
South Holland District Council,http://statistics.data.gov.uk/id/local-authority/32UF,Revs and Bens,Professional & Contractors Fees,10/04/2014,IJ00028295,2427.00,Tameside Metropolitan Borough, 
South Holland District Council,http://statistics.data.gov.uk/id/local-authority/32UF,Environmental Services,Agency Staff,10/04/2014,IJ00028378,441.79,The Best Connection Group Ltd, 
South Holland District Council,http://statistics.data.gov.uk/id/local-authority/32UF,Environmental Services,Agency Staff,10/04/2014,IJ00028378,441.78,The Best Connection Group Ltd, 
South Holland District Council,http://statistics.data.gov.uk/id/local-authority/32UF,Environmental Services,Agency Staff,10/04/2014,IJ00028378,65.10,The Best Connection Group Ltd, 
South Holland District Council,http://statistics.data.gov.uk/id/local-authority/32UF,Environmental Services,Agency Staff,10/04/2014,IJ00028377,441.79,The Best Connection Group Ltd, 
South Holland District Council,http://statistics.data.gov.uk/id/local-authority/32UF,Environmental Services,Agency Staff,10/04/2014,IJ00028377,441.78,The Best Connection Group Ltd, 
South Holland District Council,http://statistics.data.gov.uk/id/local-authority/32UF,Environmental Services,Agency Staff,10/04/2014,IJ00028377,65.10,The Best Connection Group Ltd, 
South Holland District Council,http://statistics.data.gov.uk/id/local-authority/32UF,Housing Landlord Manager,Materials and Consumables,10/04/2014,IJ00028413,345.00,Trent Fireplaces, 
South Holland District Council,http://statistics.data.gov.uk/id/local-authority/32UF,Housing Landlord Manager,Materials and Consumables,10/04/2014,IJ00028413,345.00,Trent Fireplaces, 
South Holland District Council,http://statistics.data.gov.uk/id/local-authority/32UF,Housing Landlord Manager,Gross Pay,10/04/2014,IJ00028274,862.50,Venn Group Limited, 
South Holland District Council,http://statistics.data.gov.uk/id/local-authority/32UF,ICT and Customer Services,Computer Hardware Maintenance,10/04/2014,IJ00028254,1414.03,WEST LINDSEY DISTRICT COUNCIL, 
South Holland District Council,http://statistics.data.gov.uk/id/local-authority/32UF,Capital,Works to Buildings (main Contractor),15/04/2014,IJ00028487,2204.05,R D Trading LTD (T/A RDC), 
South Holland District Council,http://statistics.data.gov.uk/id/local-authority/32UF,Capital,Works to Buildings (main Contractor),17/04/2014,IJ00028486,2980.80,1st Choice Insulations Ltd, 
South Holland District Council,http://statistics.data.gov.uk/id/local-authority/32UF,Environmental Services,Agency Staff,17/04/2014,IJ00028584,72.00,247 Personnel Ltd, 
South Holland District Council,http://statistics.data.gov.uk/id/local-authority/32UF,Environmental Services,Agency Staff,17/04/2014,IJ00028584,400.50,247 Personnel Ltd, 
South Holland District Council,http://statistics.data.gov.uk/id/local-authority/32UF,Environmental Services,Agency Staff,17/04/2014,IJ00028584,58.50,247 Personnel Ltd, 
South Holland District Council,http://statistics.data.gov.uk/id/local-authority/32UF,Environmental Services,Other Communication Costs,17/04/2014,IJ00028463,12000.00,Agripa Solutions Limited, 
South Holland District Council,http://statistics.data.gov.uk/id/local-authority/32UF,Capital,Works to Buildings (main Contractor),17/04/2014,IJ00028592,4390.00,Archaeological Project Services, 
South Holland District Council,http://statistics.data.gov.uk/id/local-authority/32UF,Environmental Services,Computer Software Licence Costs,17/04/2014,IJ00028450,22240.00,Bartec Auto ID Ltd, 
South Holland District Council,http://statistics.data.gov.uk/id/local-authority/32UF,Capital,Works to Buildings (main Contractor),17/04/2014,IJ00028552,1950.00,Bates Environmental Ltd, 
South Holland District Council,http://statistics.data.gov.uk/id/local-authority/32UF,Capital,Works to Buildings (main Contractor),17/04/2014,IJ00028474,1885.00,Belmont, 
South Holland District Council,http://statistics.data.gov.uk/id/local-authority/32UF,Environmental Services,Agency Staff,17/04/2014,IJ00028480,1226.08,Blue Arrow Ltd, 
South Holland District Council,http://statistics.data.gov.uk/id/local-authority/32UF,Environmental Services,Agency Staff,17/04/2014,IJ00028480,1126.65,Blue Arrow Ltd, 
South Holland District Council,http://statistics.data.gov.uk/id/local-authority/32UF,Environmental Services,Agency Staff,17/04/2014,IJ00028480,435.19,Blue Arrow Ltd, 
South Holland District Council,http://statistics.data.gov.uk/id/local-authority/32UF,Environmental Services,Professional & Contractors Fees,17/04/2014,IJ00028489,3500.00,Boston Borough Council, 
South Holland District Council,http://statistics.data.gov.uk/id/local-authority/32UF,Housing Landlord Manager,Damp Proofing,17/04/2014,IJ00028508,3337.00,British Waterproofing, 
South Holland District Council,http://statistics.data.gov.uk/id/local-authority/32UF,Environmental Services,Road Tax,17/04/2014,IJ00028462,720.00,C P Davidson & Sons Ltd, 
South Holland District Council,http://statistics.data.gov.uk/id/local-authority/32UF,Environmental Services,Road Tax,17/04/2014,IJ00028462,720.00,C P Davidson & Sons Ltd, 
South Holland District Council,http://statistics.data.gov.uk/id/local-authority/32UF,Finance,Compass Point Business Services,17/04/2014,IJ00028532,248630.66,Compass Point Business Srvcs (East Coast) Ltd, 
South Holland District Council,http://statistics.data.gov.uk/id/local-authority/32UF,ICT and Customer Services,External Printing and Design Costs,17/04/2014,IJ00028533,6027.46,Compass Point Business Srvcs (East Coast) Ltd, 
South Holland District Council,http://statistics.data.gov.uk/id/local-authority/32UF,Environmental Services,Road Tax,17/04/2014,IJ00028585,1466.00,Dennis Eagle, 
South Holland District Council,http://statistics.data.gov.uk/id/local-authority/32UF,Environmental Services,Road Tax,17/04/2014,IJ00028593,733.00,Dennis Eagle, 
South Holland District Council,http://statistics.data.gov.uk/id/local-authority/32UF,ICT and Customer Services,Computer Software Licence Costs,17/04/2014,IJ00028530,695.00,Dixerit Uk Limited, 
South Holland District Council,http://statistics.data.gov.uk/id/local-authority/32UF,Housing Landlord Manager,Furniture and Equipment,17/04/2014,IJ00028466,1095.00,Espo, 
South Holland District Council,http://statistics.data.gov.uk/id/local-authority/32UF,Community Development,Gas,17/04/2014,IJ00028517,1165.47,Espo Gas And Electricity, 
South Holland District Council,http://statistics.data.gov.uk/id/local-authority/32UF,Housing Landlord Manager,Void Decoration,17/04/2014,IJ00028534,1444.00,Homebase Limited, 
South Holland District Council,http://statistics.data.gov.uk/id/local-authority/32UF,Environmental Services,Agency Staff,17/04/2014,IJ00028482,220.95,Integrity Plus Ltd, 
South Holland District Council,http://statistics.data.gov.uk/id/local-authority/32UF,Environmental Services,Agency Staff,17/04/2014,IJ00028482,363.34,Integrity Plus Ltd, 
South Holland District Council,http://statistics.data.gov.uk/id/local-authority/32UF,Housing Landlord Manager,Materials and Consumables,17/04/2014,IJ00028519,1553.85,Jackson Building Centres Ltd, 
South Holland District Council,http://statistics.data.gov.uk/id/local-authority/32UF,Housing Landlord Manager,Materials and Consumables,17/04/2014,IJ00028519,1231.19,Jackson Building Centres Ltd, 
South Holland District Council,http://statistics.data.gov.uk/id/local-authority/32UF,Housing Landlord Manager,Materials and Consumables,17/04/2014,IJ00028519,87.05,Jackson Building Centres Ltd, 
South Holland District Council,http://statistics.data.gov.uk/id/local-authority/32UF,Housing Landlord Manager,Materials and Consumables,17/04/2014,IJ00028522,6288.59,Jackson Building Centres Ltd, 
South Holland District Council,http://statistics.data.gov.uk/id/local-authority/32UF,Housing Landlord Manager,Materials and Consumables,17/04/2014,IJ00028522,4818.10,Jackson Building Centres Ltd, 
South Holland District Council,http://statistics.data.gov.uk/id/local-authority/32UF,Housing Landlord Manager,Materials and Consumables,17/04/2014,IJ00028522,606.55,Jackson Building Centres Ltd, 
South Holland District Council,http://statistics.data.gov.uk/id/local-authority/32UF,Revs and Bens,VAT Customs and Excise,17/04/2014,IJ00028457,723.74,Jacobs Certificated Bailiffs, 
South Holland District Council,http://statistics.data.gov.uk/id/local-authority/32UF,Democratic Services,Staff Recruitment,17/04/2014,IJ00028612,808.04,Johnston Press Midlands. Division, 
South Holland District Council,http://statistics.data.gov.uk/id/local-authority/32UF,Housing Landlord Manager,Buildings Maintenance - Responsive,17/04/2014,IJ00028507,800.00,Justin Doughty, 
South Holland District Council,http://statistics.data.gov.uk/id/local-authority/32UF,Housing Landlord Manager,Materials and Consumables,17/04/2014,IJ00028523,346.69,Kirby & Wells Ltd, 
South Holland District Council,http://statistics.data.gov.uk/id/local-authority/32UF,Housing Landlord Manager,Materials and Consumables,17/04/2014,IJ00028523,2087.17,Kirby & Wells Ltd, 
South Holland District Council,http://statistics.data.gov.uk/id/local-authority/32UF,Housing Landlord Manager,Subscriptions to Organisations and Other Bodies,17/04/2014,IJ00028537,1407.75,Lincolnshire Probation Board, 
South Holland District Council,http://statistics.data.gov.uk/id/local-authority/32UF,Planning,Grants and Contributions to Outside Bodies- No Service Recei,17/04/2014,IJ00028611,5066.00,Lincolnshire Wildlife Trust, 
South Holland District Council,http://statistics.data.gov.uk/id/local-authority/32UF,Capital,Purchase of Land,17/04/2014,IJ00028473,1427.00,M E Goodyear Property Maintenance, 
South Holland District Council,http://statistics.data.gov.uk/id/local-authority/32UF,Housing Landlord Manager,Void Repairs,17/04/2014,IJ00028445,4200.00,M Yould Plumbing and Heating Ltd, 
South Holland District Council,http://statistics.data.gov.uk/id/local-authority/32UF,Housing Landlord Manager,Void Repairs,17/04/2014,IJ00028446,3000.00,M Yould Plumbing and Heating Ltd, 
South Holland District Council,http://statistics.data.gov.uk/id/local-authority/32UF,Housing Landlord Manager,Void Repairs,17/04/2014,IJ00028447,1800.00,M Yould Plumbing and Heating Ltd, 
South Holland District Council,http://statistics.data.gov.uk/id/local-authority/32UF,Housing Landlord Manager,Void Repairs,17/04/2014,IJ00028448,3580.25,M Yould Plumbing and Heating Ltd, 
South Holland District Council,http://statistics.data.gov.uk/id/local-authority/32UF,Capital,Works to Buildings (main Contractor),17/04/2014,IJ00028497,3635.00,Obam Lift Services Ltd, 
South Holland District Council,http://statistics.data.gov.uk/id/local-authority/32UF,Capital,Works to Buildings (main Contractor),17/04/2014,IJ00028475,4050.00,Obam Lift Services Ltd, 
South Holland District Council,http://statistics.data.gov.uk/id/local-authority/32UF,Planning,Grants and Contributions to Outside Bodies- No Service Recei,17/04/2014,IJ00028467,1000.00,Plann.It Limited, 
South Holland District Council,http://statistics.data.gov.uk/id/local-authority/32UF,Balance Sheet,Payroll-Private Health,17/04/2014,IJ00028515,7664.70,Ppp Healthcare, 
South Holland District Council,http://statistics.data.gov.uk/id/local-authority/32UF,Community Development,Fixtures And Fittings,17/04/2014,IJ00028516,838.09,Protec Fire Detection Plc, 
South Holland District Council,http://statistics.data.gov.uk/id/local-authority/32UF,Environmental Health,Course Fees,17/04/2014,IJ00028503,430.00,Ricardo AEA Ltd, 
South Holland District Council,http://statistics.data.gov.uk/id/local-authority/32UF,Environmental Health,Subscriptions to Organisations and Other Bodies,17/04/2014,IJ00028503,800.00,Ricardo AEA Ltd, 
South Holland District Council,http://statistics.data.gov.uk/id/local-authority/32UF,Capital,Purchase of Land,17/04/2014,IJ00028577,2204.05,Robert Doughty Consultancy, 
South Holland District Council,http://statistics.data.gov.uk/id/local-authority/32UF,Community Development,Grants and Contributions to Outside Bodies- No Service Recei,17/04/2014,IJ00028609,14865.00,S.Holland Citizens Advice Bureau, 
South Holland District Council,http://statistics.data.gov.uk/id/local-authority/32UF,ICT and Customer Services,Computer Software Licence Costs,17/04/2014,IJ00028535,525.31,Siteimprove Ltd, 
South Holland District Council,http://statistics.data.gov.uk/id/local-authority/32UF,Community Development,Electricity,17/04/2014,IJ00028520,2184.63,Southern Electric, 
South Holland District Council,http://statistics.data.gov.uk/id/local-authority/32UF,Housing Landlord Manager,Electricity,17/04/2014,IJ00028554,614.47,Southern Electric, 
South Holland District Council,http://statistics.data.gov.uk/id/local-authority/32UF,Environmental Services,Rent and Lease Payments,17/04/2014,IJ00028441,695.70,Spalding Rectory Feoffees, 
South Holland District Council,http://statistics.data.gov.uk/id/local-authority/32UF,Environmental Services,Agency Staff,17/04/2014,IJ00028488,781.51,The Best Connection Group Ltd, 
South Holland District Council,http://statistics.data.gov.uk/id/local-authority/32UF,Environmental Services,Agency Staff,17/04/2014,IJ00028488,167.15,The Best Connection Group Ltd, 
South Holland District Council,http://statistics.data.gov.uk/id/local-authority/32UF,Environmental Services,Grants and Contributions to Outside Bodies- No Service Recei,17/04/2014,IJ00028469,1200.00,Tyrrell Contractors Ltd, 
South Holland District Council,http://statistics.data.gov.uk/id/local-authority/32UF,Environmental Services,Tyres,17/04/2014,IJ00028598,4182.18,Vaculug Traction Tyres Ltd, 
South Holland District Council,http://statistics.data.gov.uk/id/local-authority/32UF,Environmental Services,Agency Staff,24/04/2014,IJ00028758,508.50,247 Personnel Ltd, 
South Holland District Council,http://statistics.data.gov.uk/id/local-authority/32UF,Environmental Services,Agency Staff,24/04/2014,IJ00028758,207.00,247 Personnel Ltd, 
South Holland District Council,http://statistics.data.gov.uk/id/local-authority/32UF,Building Control,Buildings Maintenance - Responsive,24/04/2014,IJ00028644,1350.00,ABo Structural Limited, 
South Holland District Council,http://statistics.data.gov.uk/id/local-authority/32UF,Housing Landlord Manager,Buildings Maintenance - Responsive,24/04/2014,IJ00028712,1900.00,B J ROOFING, 
South Holland District Council,http://statistics.data.gov.uk/id/local-authority/32UF,Housing Landlord Manager,Buildings Maintenance - Responsive,24/04/2014,IJ00028713,2450.00,B J ROOFING, 
South Holland District Council,http://statistics.data.gov.uk/id/local-authority/32UF,Housing Landlord Manager,Buildings Maintenance - Responsive,24/04/2014,IJ00028714,1250.00,B J ROOFING, 
South Holland District Council,http://statistics.data.gov.uk/id/local-authority/32UF,Environmental Services,Agency Staff,24/04/2014,IJ00028685,456.03,Blue Arrow Ltd, 
South Holland District Council,http://statistics.data.gov.uk/id/local-authority/32UF,Environmental Services,Agency Staff,24/04/2014,IJ00028685,1045.46,Blue Arrow Ltd, 
South Holland District Council,http://statistics.data.gov.uk/id/local-authority/32UF,Environmental Services,Agency Staff,24/04/2014,IJ00028685,827.22,Blue Arrow Ltd, 
South Holland District Council,http://statistics.data.gov.uk/id/local-authority/32UF,Environmental Services,Agency Staff,24/04/2014,IJ00028685,232.10,Blue Arrow Ltd, 
South Holland District Council,http://statistics.data.gov.uk/id/local-authority/32UF,Environmental Services,Agency Staff,24/04/2014,IJ00028685,96.74,Blue Arrow Ltd, 
South Holland District Council,http://statistics.data.gov.uk/id/local-authority/32UF,Economic Development,Professional & Contractors Fees,24/04/2014,IJ00028664,1131.39,Carbon Minded Limited, 
South Holland District Council,http://statistics.data.gov.uk/id/local-authority/32UF,Housing,Grants and Contributions to Outside Bodies- No Service Recei,24/04/2014,IJ00028718,1272.74,Cia Solutions, 
South Holland District Council,http://statistics.data.gov.uk/id/local-authority/32UF,Community Development,External Printing and Design Costs,24/04/2014,IJ00028753,1009.00,Classic Printers, 
South Holland District Council,http://statistics.data.gov.uk/id/local-authority/32UF,Community Development,External Printing and Design Costs,24/04/2014,IJ00028754,2434.00,Classic Printers, 
South Holland District Council,http://statistics.data.gov.uk/id/local-authority/32UF,Finance,Parish Council Precepts,24/04/2014,IJ00028760,6500.00,Cowbit Parish Council, 
South Holland District Council,http://statistics.data.gov.uk/id/local-authority/32UF,Finance,Parish Council Precepts,24/04/2014,IJ00028763,68833.00,Crowland Parish Council., 
South Holland District Council,http://statistics.data.gov.uk/id/local-authority/32UF,Finance,Parish Council Precepts,24/04/2014,IJ00028764,11000.00,DEEPING ST NICHOLAS PARISH COUNCIL, 
South Holland District Council,http://statistics.data.gov.uk/id/local-authority/32UF,Housing,Grants and Contributions to Outside Bodies- No Service Recei,24/04/2014,IJ00028727,1835.00,Dolphin Mobility East Mids Ltd, 
South Holland District Council,http://statistics.data.gov.uk/id/local-authority/32UF,Finance,Parish Council Precepts,24/04/2014,IJ00028765,23000.00,Donington Parish Council., 
South Holland District Council,http://statistics.data.gov.uk/id/local-authority/32UF,Housing Landlord Manager,Void Repairs,24/04/2014,IJ00028684,9115.00,Elite Decor UK Limited, 
South Holland District Council,http://statistics.data.gov.uk/id/local-authority/32UF,Housing Landlord Manager,Void Repairs,24/04/2014,IJ00028686,5568.62,Elite Decor UK Limited, 
South Holland District Council,http://statistics.data.gov.uk/id/local-authority/32UF,Housing Landlord Manager,Void Repairs,24/04/2014,IJ00028687,7038.00,Elite Decor UK Limited, 
South Holland District Council,http://statistics.data.gov.uk/id/local-authority/32UF,Housing Landlord Manager,Sewerage Treatment Works,24/04/2014,IJ00028785,2052.00,Environment Agency, 
South Holland District Council,http://statistics.data.gov.uk/id/local-authority/32UF,Housing Landlord Manager,Sewerage Treatment Works,24/04/2014,IJ00028785,684.00,Environment Agency, 
South Holland District Council,http://statistics.data.gov.uk/id/local-authority/32UF,Housing Landlord Manager,Sewerage Treatment Works,24/04/2014,IJ00028785,2052.00,Environment Agency, 
South Holland District Council,http://statistics.data.gov.uk/id/local-authority/32UF,Housing Landlord Manager,Sewerage Treatment Works,24/04/2014,IJ00028785,2052.00,Environment Agency, 
South Holland District Council,http://statistics.data.gov.uk/id/local-authority/32UF,Housing Landlord Manager,Sewerage Treatment Works,24/04/2014,IJ00028785,684.00,Environment Agency, 
South Holland District Council,http://statistics.data.gov.uk/id/local-authority/32UF,Housing Landlord Manager,Sewerage Treatment Works,24/04/2014,IJ00028785,1026.00,Environment Agency, 
South Holland District Council,http://statistics.data.gov.uk/id/local-authority/32UF,Housing Landlord Manager,Sewerage Treatment Works,24/04/2014,IJ00028785,684.00,Environment Agency, 
South Holland District Council,http://statistics.data.gov.uk/id/local-authority/32UF,Housing Landlord Manager,Sewerage Treatment Works,24/04/2014,IJ00028785,684.00,Environment Agency, 
South Holland District Council,http://statistics.data.gov.uk/id/local-authority/32UF,Housing Landlord Manager,Sewerage Treatment Works,24/04/2014,IJ00028785,684.00,Environment Agency, 
South Holland District Council,http://statistics.data.gov.uk/id/local-authority/32UF,Housing Landlord Manager,Sewerage Treatment Works,24/04/2014,IJ00028785,684.00,Environment Agency, 
South Holland District Council,http://statistics.data.gov.uk/id/local-authority/32UF,Housing Landlord Manager,Sewerage Treatment Works,24/04/2014,IJ00028785,684.00,Environment Agency, 
South Holland District Council,http://statistics.data.gov.uk/id/local-authority/32UF,Housing Landlord Manager,Sewerage Treatment Works,24/04/2014,IJ00028785,1026.00,Environment Agency, 
South Holland District Council,http://statistics.data.gov.uk/id/local-authority/32UF,Housing Landlord Manager,Sewerage Treatment Works,24/04/2014,IJ00028785,684.00,Environment Agency, 
South Holland District Council,http://statistics.data.gov.uk/id/local-authority/32UF,Housing Landlord Manager,Sewerage Treatment Works,24/04/2014,IJ00028785,684.00,Environment Agency, 
South Holland District Council,http://statistics.data.gov.uk/id/local-authority/32UF,Housing Landlord Manager,Sewerage Treatment Works,24/04/2014,IJ00028785,684.00,Environment Agency, 
South Holland District Council,http://statistics.data.gov.uk/id/local-authority/32UF,Housing Landlord Manager,Sewerage Treatment Works,24/04/2014,IJ00028785,2052.00,Environment Agency, 
South Holland District Council,http://statistics.data.gov.uk/id/local-authority/32UF,Housing Landlord Manager,Sewerage Treatment Works,24/04/2014,IJ00028785,2052.00,Environment Agency, 
South Holland District Council,http://statistics.data.gov.uk/id/local-authority/32UF,Housing Landlord Manager,Sewerage Treatment Works,24/04/2014,IJ00028785,684.00,Environment Agency, 
South Holland District Council,http://statistics.data.gov.uk/id/local-authority/32UF,Housing Landlord Manager,Sewerage Treatment Works,24/04/2014,IJ00028785,1026.00,Environment Agency, 
South Holland District Council,http://statistics.data.gov.uk/id/local-authority/32UF,Housing Landlord Manager,Sewerage Treatment Works,24/04/2014,IJ00028785,684.00,Environment Agency, 
South Holland District Council,http://statistics.data.gov.uk/id/local-authority/32UF,Housing Landlord Manager,Sewerage Treatment Works,24/04/2014,IJ00028785,1026.00,Environment Agency, 
South Holland District Council,http://statistics.data.gov.uk/id/local-authority/32UF,Housing Landlord Manager,Sewerage Treatment Works,24/04/2014,IJ00028785,1026.00,Environment Agency, 
South Holland District Council,http://statistics.data.gov.uk/id/local-authority/32UF,Housing Landlord Manager,Sewerage Treatment Works,24/04/2014,IJ00028785,1026.00,Environment Agency, 
South Holland District Council,http://statistics.data.gov.uk/id/local-authority/32UF,Housing Landlord Manager,Sewerage Treatment Works,24/04/2014,IJ00028785,2052.00,Environment Agency, 
South Holland District Council,http://statistics.data.gov.uk/id/local-authority/32UF,Housing Landlord Manager,Sewerage Treatment Works,24/04/2014,IJ00028785,684.00,Environment Agency, 
South Holland District Council,http://statistics.data.gov.uk/id/local-authority/32UF,Housing Landlord Manager,Gas,24/04/2014,IJ00028625,818.21,Espo Gas And Electricity, 
South Holland District Council,http://statistics.data.gov.uk/id/local-authority/32UF,HR,Other Employee Expenses,24/04/2014,IJ00028710,82.38,Fideliti Limited, 
South Holland District Council,http://statistics.data.gov.uk/id/local-authority/32UF,Balance Sheet,Payroll SHDC Child Care,24/04/2014,IJ00028710,2059.50,Fideliti Limited, 
South Holland District Council,http://statistics.data.gov.uk/id/local-authority/32UF,Finance,Parish Council Precepts,24/04/2014,IJ00028766,17040.00,Fleet Parish Council, 
South Holland District Council,http://statistics.data.gov.uk/id/local-authority/32UF,Community Development,Performers and Entertainers Fees,24/04/2014,IJ00028751,785.00,Funhouse Comedy, 
South Holland District Council,http://statistics.data.gov.uk/id/local-authority/32UF,Community Development,Other Communication Costs,24/04/2014,IJ00028652,700.14,G T S Security, 
South Holland District Council,http://statistics.data.gov.uk/id/local-authority/32UF,Community Development,Other Communication Costs,24/04/2014,IJ00028653,1881.00,G T S Security, 
South Holland District Council,http://statistics.data.gov.uk/id/local-authority/32UF,Finance,Parish Council Precepts,24/04/2014,IJ00028768,7000.00,GEDNEY HILL PARISH COUNCIL, 
South Holland District Council,http://statistics.data.gov.uk/id/local-authority/32UF,Finance,Parish Council Precepts,24/04/2014,IJ00028767,25500.00,GEDNEY PARISH COUNCIL, 
South Holland District Council,http://statistics.data.gov.uk/id/local-authority/32UF,Environmental Services,Grants and Contributions to Outside Bodies- No Service Recei,24/04/2014,IJ00028647,1040.00,Gosberton Parish Council - Litter Scheme, 
South Holland District Council,http://statistics.data.gov.uk/id/local-authority/32UF,Finance,Parish Council Precepts,24/04/2014,IJ00028769,21000.00,Gosberton Parish Council - Litter Scheme, 
South Holland District Council,http://statistics.data.gov.uk/id/local-authority/32UF,Finance,Government Housing Capital Receipt Pool,24/04/2014,IJ00028616,74987.56,Government Banking Services, 
South Holland District Council,http://statistics.data.gov.uk/id/local-authority/32UF,Finance,Parish Council Precepts,24/04/2014,IJ00028770,191000.00,Holbeach Parish Council, 
South Holland District Council,http://statistics.data.gov.uk/id/local-authority/32UF,Housing Landlord Manager,Buildings Maintenance - Responsive,24/04/2014,IJ00028640,780.00,Hydro-X Water Treatment Ltd, 
South Holland District Council,http://statistics.data.gov.uk/id/local-authority/32UF,Housing Landlord Manager,Buildings Maintenance - Responsive,24/04/2014,IJ00028641,3120.00,Hydro-X Water Treatment Ltd, 
South Holland District Council,http://statistics.data.gov.uk/id/local-authority/32UF,Housing Landlord Manager,Buildings Maintenance - Responsive,24/04/2014,IJ00028642,463.33,Hydro-X Water Treatment Ltd, 
South Holland District Council,http://statistics.data.gov.uk/id/local-authority/32UF,Housing Landlord Manager,Buildings Maintenance - Responsive,24/04/2014,IJ00028642,463.33,Hydro-X Water Treatment Ltd, 
South Holland District Council,http://statistics.data.gov.uk/id/local-authority/32UF,Housing Landlord Manager,Buildings Maintenance - Responsive,24/04/2014,IJ00028642,463.34,Hydro-X Water Treatment Ltd, 
South Holland District Council,http://statistics.data.gov.uk/id/local-authority/32UF,Housing Landlord Manager,Buildings Maintenance - Responsive,24/04/2014,IJ00028667,200.00,Hydro-X Water Treatment Ltd, 
South Holland District Council,http://statistics.data.gov.uk/id/local-authority/32UF,Housing Landlord Manager,Buildings Maintenance - Responsive,24/04/2014,IJ00028667,200.00,Hydro-X Water Treatment Ltd, 
South Holland District Council,http://statistics.data.gov.uk/id/local-authority/32UF,Housing Landlord Manager,Buildings Maintenance - Responsive,24/04/2014,IJ00028667,200.00,Hydro-X Water Treatment Ltd, 
South Holland District Council,http://statistics.data.gov.uk/id/local-authority/32UF,Housing Landlord Manager,Buildings Maintenance - Responsive,24/04/2014,IJ00028668,6240.00,Hydro-X Water Treatment Ltd, 
South Holland District Council,http://statistics.data.gov.uk/id/local-authority/32UF,Environmental Services,Agency Staff,24/04/2014,IJ00028683,78.56,Integrity Plus Ltd, 
South Holland District Council,http://statistics.data.gov.uk/id/local-authority/32UF,Environmental Services,Agency Staff,24/04/2014,IJ00028683,284.78,Integrity Plus Ltd, 
South Holland District Council,http://statistics.data.gov.uk/id/local-authority/32UF,Environmental Services,Agency Staff,24/04/2014,IJ00028683,363.34,Integrity Plus Ltd, 
South Holland District Council,http://statistics.data.gov.uk/id/local-authority/32UF,Environmental Health,Professional & Contractors Fees,24/04/2014,IJ00028791,750.00,Kingsley Hamilton, 
South Holland District Council,http://statistics.data.gov.uk/id/local-authority/32UF,Environmental Health,Professional & Contractors Fees,24/04/2014,IJ00028792,937.50,Kingsley Hamilton, 
South Holland District Council,http://statistics.data.gov.uk/id/local-authority/32UF,Capital,Works to Buildings (main Contractor),24/04/2014,IJ00028620,75953.26,Langwith Builders Ltd, 
South Holland District Council,http://statistics.data.gov.uk/id/local-authority/32UF,Economic Development,Professional & Contractors Fees,24/04/2014,IJ00028665,1100.00,Lava Marketing Communications Limited, 
South Holland District Council,http://statistics.data.gov.uk/id/local-authority/32UF,Planning,Professional & Contractors Fees,24/04/2014,IJ00028649,3304.00,Lincolnshire County Council, 
South Holland District Council,http://statistics.data.gov.uk/id/local-authority/32UF,Planning,Professional & Contractors Fees,24/04/2014,IJ00028755,2834.00,Lincolnshire County Council, 
South Holland District Council,http://statistics.data.gov.uk/id/local-authority/32UF,Planning,Professional & Contractors Fees,24/04/2014,IJ00028756,3176.00,Lincolnshire County Council, 
South Holland District Council,http://statistics.data.gov.uk/id/local-authority/32UF,Finance,Parish Council Precepts,24/04/2014,IJ00028771,650.00,LITTLE SUTTON PARISH MEETING, 
South Holland District Council,http://statistics.data.gov.uk/id/local-authority/32UF,Finance,Parish Council Precepts,24/04/2014,IJ00028772,67500.00,Long Sutton Parish Council, 
South Holland District Council,http://statistics.data.gov.uk/id/local-authority/32UF,Finance,Parish Council Precepts,24/04/2014,IJ00028773,20000.00,Lutton Parish Council, 
South Holland District Council,http://statistics.data.gov.uk/id/local-authority/32UF,Finance,Parish Council Precepts,24/04/2014,IJ00028680,37000.00,Moulton Parish Council, 
South Holland District Council,http://statistics.data.gov.uk/id/local-authority/32UF,Finance,Parish Council Precepts,24/04/2014,IJ00028774,25000.00,Pinchbeck Parish Council, 
South Holland District Council,http://statistics.data.gov.uk/id/local-authority/32UF,Finance,Parish Council Precepts,24/04/2014,IJ00028775,7500.00,Quadring Parish Council, 
South Holland District Council,http://statistics.data.gov.uk/id/local-authority/32UF,Housing Landlord Manager,Void Repairs,24/04/2014,IJ00028783,4663.24,Response Construction Maintenance Limited, 
South Holland District Council,http://statistics.data.gov.uk/id/local-authority/32UF,Democratic Services,Stationery,24/04/2014,IJ00028762,888.75,Shaw & Sons Ltd, 
South Holland District Council,http://statistics.data.gov.uk/id/local-authority/32UF,Housing Landlord Manager,Void Repairs,24/04/2014,IJ00028682,4910.00,South Holland Maintenance Ltd, 
South Holland District Council,http://statistics.data.gov.uk/id/local-authority/32UF,Housing Landlord Manager,Void Repairs,24/04/2014,IJ00028677,1070.00,Spotless Cleaning, 
South Holland District Council,http://statistics.data.gov.uk/id/local-authority/32UF,Housing Landlord Manager,Void Repairs,24/04/2014,IJ00028679,820.00,Spotless Cleaning, 
South Holland District Council,http://statistics.data.gov.uk/id/local-authority/32UF,Finance,Parish Council Precepts,24/04/2014,IJ00028777,59000.00,Sutton Bridge Parish Council, 
South Holland District Council,http://statistics.data.gov.uk/id/local-authority/32UF,Finance,Parish Council Precepts,24/04/2014,IJ00028778,5355.00,Sutton St Edmund Parish Council, 
South Holland District Council,http://statistics.data.gov.uk/id/local-authority/32UF,Finance,Parish Council Precepts,24/04/2014,IJ00028779,7500.00,Sutton St James Parish Council, 
South Holland District Council,http://statistics.data.gov.uk/id/local-authority/32UF,ICT and Customer Services,Computer Software Licence Costs,24/04/2014,IJ00028746,10454.40,Trustmarque Solutions Ltd, 
South Holland District Council,http://statistics.data.gov.uk/id/local-authority/32UF,Finance,Parish Council Precepts,24/04/2014,IJ00028780,19000.00,TYDD ST MARY PARISH COUNCIL, 
South Holland District Council,http://statistics.data.gov.uk/id/local-authority/32UF,Finance,Fees and Charges General,24/04/2014,IJ00028696,-30.95,UNISON, 
South Holland District Council,http://statistics.data.gov.uk/id/local-authority/32UF,Balance Sheet,Payroll-Cons Group Savings,24/04/2014,IJ00028696,1237.95,UNISON, 
South Holland District Council,http://statistics.data.gov.uk/id/local-authority/32UF,ICT and Customer Services,Computer Hardware Maintenance,24/04/2014,IJ00028255,3637.78,Vodafone Ltd, 
South Holland District Council,http://statistics.data.gov.uk/id/local-authority/32UF,Housing,Grants and Contributions to Outside Bodies- No Service Recei,24/04/2014,IJ00028717,1725.14,WEST LINDSEY DISTRICT COUNCIL, 
South Holland District Council,http://statistics.data.gov.uk/id/local-authority/32UF,Finance,Parish Council Precepts,24/04/2014,IJ00028781,16000.00,WESTON PARISH COUNCIL, 
South Holland District Council,http://statistics.data.gov.uk/id/local-authority/32UF,Finance,Parish Council Precepts,24/04/2014,IJ00028782,12500.00,Whaplode Parish Council, 
